fUSD/lending_fUSD_20241104
["ID","MTS","AMOUNT","RATE_DAILY","PERIOD"]
[341308843,1730749844057,-500.0,0.0003315,2]
[341308844,1730749844066,-500.0,0.0003315,2]
[341308845,1730749844076,-613.27,0.0003315,2]
[341308846,1730749844085,-500.0,0.0003315,2]
[341308847,1730749844095,-500.0,0.0003315,2]
[341308848,1730749844104,-500.0,0.0003315,2]
[341308849,1730749844114,-500.0,0.0003315,2]
[341308850,1730749844123,-1704.83,0.0003315,2]
[341308851,1730749844133,-422.03811585,0.0003315,2]
[341308852,1730749844143,-500.0,0.0003315,2]
[341308853,1730749844154,-500.0,0.0003315,2]
[341308854,1730749844165,-483.15633231,0.0003315,2]
[341308855,1730749844175,-500.0,0.0003315,2]
[341308856,1730749844184,-500.0,0.0003315,2]
[341308857,1730749844193,-500.0,0.0003315,2]
[341308858,1730749844203,-500.0,0.0003315,2]
[341308859,1730749844212,-500.0,0.0003315,2]
[341308860,1730749844222,-500.0,0.0003315,2]
[341308861,1730749844231,-500.0,0.0003315,2]
[341308862,1730749844247,-500.0,0.0003315,2]
[341308863,1730749844257,-500.0,0.0003315,2]
[341308864,1730749844266,-500.0,0.0003315,2]
[341308865,1730749844275,-500.0,0.0003315,2]
[341308866,1730749844284,-500.0,0.0003315,2]
[341308867,1730749844294,-323.81,0.0003315,2]
[341308868,1730749844303,-500.0,0.0003315,2]
[341308869,1730749844313,-500.0,0.0003315,2]
[341308870,1730749844322,-500.0,0.0003315,2]
[341308871,1730749844332,-500.0,0.0003315,2]
[341308872,1730749844341,-500.0,0.0003315,2]
[341308873,1730749844350,-500.0,0.0003315,2]
[341308874,1730749844360,-500.0,0.0003315,2]
[341308875,1730749844370,-500.0,0.0003315,2]
[341308876,1730749844379,-345.59,0.0003315,2]
[341308877,1730749844388,-500.0,0.0003315,2]
[341308878,1730749844398,-362.83,0.0003315,2]
[341308879,1730749844408,-500.0,0.0003315,2]
[341308880,1730749844417,-500.0,0.0003315,2]
[341308881,1730749844427,-500.0,0.0003315,2]
[341308882,1730749844436,-500.0,0.0003315,2]
[341308883,1730749844446,-500.0,0.0003315,2]
[341308884,1730749844455,-500.0,0.0003315,2]
[341308885,1730749844464,-536.97,0.0003315,2]
[341308886,1730749844474,-500.0,0.0003315,2]
[341308887,1730749844483,-500.0,0.0003315,2]
[341308888,1730749844493,-1450.97,0.0003315,2]
[341308889,1730749844502,-500.0,0.0003315,2]
[341308890,1730749844512,-500.0,0.0003315,2]
[341308891,1730749844521,-556.2,0.0003315,2]
[341308892,1730749844531,-500.0,0.0003315,2]
[341308893,1730749844542,-500.0,0.0003315,2]
[341308894,1730749844552,-500.0,0.0003315,2]
[341308895,1730749844561,-500.0,0.0003315,2]
[341308896,1730749844571,-500.0,0.0003315,2]
[341308897,1730749844580,-578.36,0.0003315,2]
[341308898,1730749844590,-500.0,0.0003315,2]
[341308900,1730749844600,-500.0,0.0003315,2]
[341308902,1730749844610,-500.0,0.0003315,2]
[341308903,1730749844620,-500.0,0.0003315,2]
[341308905,1730749844630,-500.0,0.0003315,2]
[341308906,1730749844639,-500.0,0.0003315,2]
[341308909,1730749844648,-500.0,0.0003315,2]
[341308911,1730749844658,-500.0,0.0003315,2]
[341308913,1730749844667,-314.44135269,0.0003315,2]
[341308915,1730749844676,-500.0,0.0003315,2]
[341308917,1730749844685,-500.0,0.0003315,2]
[341308919,1730749844693,-500.0,0.0003315,2]
[341308921,1730749844702,-500.0,0.0003315,2]
[341308923,1730749844712,-1339.85,0.0003315,2]
[341308925,1730749844720,-500.0,0.0003315,2]
[341308927,1730749844729,-639.92,0.0003315,2]
[341308929,1730749844742,-498.84972765,0.0003315,2]
[341308931,1730749844751,-500.0,0.0003315,2]
[341308933,1730749844760,-602.18551977,0.0003315,2]
[341308935,1730749844771,-500.0,0.0003315,2]
[341308937,1730749844784,-500.0,0.0003315,2]
[341308938,1730749844796,-500.0,0.0003315,2]
[341308939,1730749844809,-500.0,0.0003315,2]
[341308940,1730749844820,-500.0,0.0003315,2]
[341308941,1730749844832,-500.0,0.0003315,2]
[341308942,1730749844842,-500.0,0.0003315,2]
[341308943,1730749844854,-500.0,0.0003315,2]
[341308944,1730749844867,-500.0,0.0003315,2]
[341308945,1730749844881,-565.71,0.0003315,2]
[341308946,1730749844892,-500.0,0.0003315,2]
[341308947,1730749844904,-500.0,0.0003315,2]
[341308948,1730749844916,-153.060072,0.00033173,5]
[341308949,1730749844929,-500.74958656,0.00033173,5]
[341308950,1730749844941,-167.39723607,0.00033224,2]
[341308951,1730749844953,-193.86955363,0.00033224,5]
[341308952,1730749844965,-500.0,0.00033323,2]
[341308953,1730749844978,-166.577191,0.00033324,7]
[341308954,1730749844990,-151.0,0.00033324,7]
[341308955,1730749845003,-833.347478,0.00033324,7]
[341308956,1730749845015,-833.347478,0.00033324,7]
[341308957,1730749845027,-100000.0,0.00033324,2]
[341308958,1730749845038,-1000.0,0.00033324,2]
[341308959,1730749845049,-17578.17851336,0.00033324,2]
[341308960,1730749845075,-3258.52100198,0.00033324,2]
[341308961,1730749845088,-513.18500005,0.00033324,2]
[341308962,1730749845101,-956.62825013,0.00033324,2]
[341308965,1730749845805,-500.0,0.00032876,2]
[341308966,1730749845818,-228.58717885,0.00033187,6]
[341308967,1730749845831,-687.79752032,0.00033324,2]
[341308968,1730749845867,-1945.25979154,0.00033324,2]
[341308969,1730749845880,-4313.55765463,0.00033324,2]
[341308971,1730749975513,-300.0,0.00019725,2]
[341308972,1730749975535,-420.0,0.00021484,2]
[341308974,1730750006417,156.29,0.00015342,2]
[341308975,1730750101962,300.0,0.00019725,2]
[341308976,1730750102765,420.0,0.00021484,2]
[341308977,1730750281388,300.0,0.00019725,2]
[341308978,1730750282140,420.0,0.00021484,2]
[341308979,1730750341791,300.0,0.00019725,2]
[341308980,1730750342540,409.0,0.00021484,2]
[341308981,1730750445076,150.30440352,0.00021377,15]
[341308982,1730750452889,350.000002,0.00017,2]
[341308983,1730750481454,153.78,0.00015342,2]
[341308984,1730750708340,-200.0,0.00023,2]
[341308985,1730750708363,-500.0,0.00024932,2]
[341308991,1730750776809,-172.45,0.0002513,2]
[341308992,1730750776831,-1907.0,0.000253,2]
[341308993,1730750776852,-491.08,0.00029404,2]
[341308994,1730750776873,-331.21425,0.0003,2]
[341308995,1730750776893,-331.21425,0.0003,2]
[341308997,1730750818060,250.0,0.00021,2]
[341308998,1730750819893,-300.0,0.00023,2]
[341309019,1730750962869,-172.45,0.00024868,2]
[341309025,1730751015221,153.73,0.00015342,2]
[341309033,1730751031717,-250.0,0.00031093,2]
[341309034,1730751031726,-500.0,0.00031104,2]
[341309035,1730751031735,-171.39,0.00031129,2]
[341309036,1730751031744,-200.0,0.00031139,2]
[341309037,1730751031753,-663.72,0.00031144,2]
[341309038,1730751031762,-6216.29652425,0.00031155,2]
[341309039,1730751031773,-7382.376725,0.00031155,2]
[341309040,1730751031784,-6127.228,0.00031155,2]
[341309041,1730751031795,-4174.09875075,0.00031155,2]
[341309042,1730751031804,-150.0,0.00031161,7]
[341309043,1730751031813,-1057.96,0.00031167,2]
[341309044,1730751031822,-313.44124925,0.00031171,2]
[341309045,1730751031833,-344.71231538,0.00031171,2]
[341309046,1730751031844,-580.63643537,0.00031171,2]
[341309047,1730751031853,-1562.05,0.00031183,2]
[341309048,1730751031863,-250.0,0.00031194,2]
[341309049,1730751031872,-157.57,0.00031216,2]
[341309050,1730751031881,-158.25,0.00031232,2]
[341309051,1730751031891,-150.0,0.00031232,2]
[341309052,1730751031901,-1733.88681373,0.0003126,2]
[341309084,1730751037920,-118.53318627,0.0003126,2]
[341309085,1730751037931,-250.0,0.00031277,2]
[341309086,1730751037941,-384.0,0.00031321,120]
[341309087,1730751037950,-1000.0,0.00031404,2]
[341309088,1730751037960,-152.0,0.000315,120]
[341309089,1730751037970,-145.01933165,0.0003154,30]
[341309092,1730751039758,-224.61066835,0.0003154,30]
[341309093,1730751039767,-491.08,0.00031668,2]
[341309094,1730751039776,-164.02,0.00032088,2]
[341309095,1730751039786,-214.59317155,0.00032099,2]
[341309096,1730751039814,-85.40682845,0.00032099,2]
[341309097,1730751039824,-500.0,0.000321,30]
[341309098,1730751039833,-0.08546615,0.000321,30]
[341309099,1730751039869,-499.91453385,0.000321,30]
[341309100,1730751039879,-500.0,0.000321,30]
[341309101,1730751039888,-500.0,0.000321,30]
[341309102,1730751039898,-500.0,0.000321,30]
[341309103,1730751039907,-3533.35,0.0003223,2]
[341309104,1730751039916,-3533.35,0.00032247,2]
[341309105,1730751039926,-3533.35,0.00032264,2]
[341309106,1730751039935,-3533.35,0.00032281,2]
[341309107,1730751039944,-3533.35,0.00032298,2]
[341309108,1730751039953,-273.92025778,0.00032315,2]
[341309109,1730751039964,-883.838047,0.00032315,2]
[341309110,1730751039979,-2375.59169522,0.00032315,2]
[341309111,1730751039988,-3533.35,0.00032332,2]
[341309112,1730751039998,-3533.35,0.00032349,2]
[341309113,1730751040007,-3533.35,0.00032365,2]
[341309114,1730751040019,-3533.35,0.00032382,2]
[341309115,1730751040029,-3533.35,0.00032399,2]
[341309116,1730751040038,-3533.35,0.00032416,2]
[341309117,1730751040047,-3533.35,0.00032433,2]
[341309118,1730751040057,-3533.35,0.0003245,2]
[341309119,1730751040066,-3533.35,0.00032467,2]
[341309120,1730751040076,-3533.35,0.00032484,2]
[341309121,1730751040087,-1870.36245094,0.00032501,2]
[341309122,1730751040098,-1662.98754906,0.00032501,2]
[341309123,1730751040107,-244.35,0.00032508,10]
[341309124,1730751040116,-203.63,0.00032508,10]
[341309125,1730751040125,-169.69,0.00032508,10]
[341309126,1730751040134,-3533.35,0.00032518,2]
[341309127,1730751040143,-2606.53830478,0.00032535,2]
[341309131,1730751042750,-926.81169522,0.00032535,2]
[341309132,1730751042761,-3533.35,0.00032552,2]
[341309133,1730751042770,-156.29,0.0003272,2]
[341309134,1730751042779,-673.47458077,0.00032766,10]
[341309135,1730751042805,-175.00541923,0.00032766,10]
[341309136,1730751042814,-105.17924947,0.00032776,2]
[341309137,1730751043017,-394.82075053,0.00032776,2]
[341309138,1730751043026,-37818.9099,0.00032776,2]
[341309139,1730751043035,-6981.8852051,0.00032776,15]
[341309140,1730751043045,-351.26022223,0.00032776,2]
[341309141,1730751043054,-500.0,0.00032875,2]
[341309142,1730751043064,-370.69276057,0.00032875,2]
[341309143,1730751043073,-182.88753933,0.00032876,2]
[341309144,1730751043082,-500.0,0.00032876,2]
[341309145,1730751043092,-500.0,0.00032876,2]
[341309146,1730751043101,-500.0,0.00032876,2]
[341309147,1730751043110,-605.12643493,0.00032876,2]
[341309148,1730751043119,-500.0,0.00032876,2]
[341309149,1730751043128,-459.8,0.00032876,2]
[341309150,1730751043138,-500.0,0.00032876,2]
[341309151,1730751043147,-500.0,0.00032876,2]
[341309152,1730751043156,-358.37838823,0.00032876,2]
[341309153,1730751043165,-500.0,0.00032876,2]
[341309154,1730751043174,-500.0,0.00032876,2]
[341309155,1730751043183,-206.44031298,0.00032876,2]
[341309156,1730751043192,-500.0,0.00032876,2]
[341309157,1730751043201,-379.54,0.00032876,2]
[341309158,1730751043210,-500.0,0.00032876,2]
[341309159,1730751043219,-500.0,0.00032876,7]
[341309160,1730751043228,-279.38817324,0.00032876,2]
[341309161,1730751043237,-500.0,0.00032876,2]
[341309162,1730751043246,-500.0,0.00032876,2]
[341309163,1730751043255,-617.04,0.00032876,2]
[341309164,1730751043264,-508.05,0.00032876,2]
[341309165,1730751043273,-500.0,0.00032876,2]
[341309166,1730751043281,-500.0,0.00032876,2]
[341309167,1730751043290,-639.92,0.00032876,2]
[341309168,1730751043299,-500.0,0.00032876,2]
[341309169,1730751043308,-500.0,0.00032876,2]
[341309170,1730751043317,-500.0,0.00032876,2]
[341309171,1730751043326,-500.0,0.00032876,2]
[341309172,1730751043335,-500.0,0.00032876,2]
[341309173,1730751043344,-500.0,0.00032876,2]
[341309174,1730751043353,-500.0,0.00032876,2]
[341309175,1730751043362,-500.0,0.00032876,2]
[341309176,1730751043372,-500.0,0.00032876,2]
[341309177,1730751043381,-500.0,0.00032876,2]
[341309178,1730751043390,-500.0,0.00032876,2]
[341309179,1730751043399,-500.0,0.00032876,2]
[341309180,1730751043408,-500.0,0.00032876,2]
[341309181,1730751043417,-500.0,0.00032876,2]
[341309182,1730751043426,-500.0,0.00032876,2]
[341309183,1730751043435,-500.0,0.00032876,2]
[341309184,1730751043443,-500.0,0.00032876,2]
[341309185,1730751043452,-500.0,0.00032876,2]
[341309186,1730751043461,-500.0,0.00032876,2]
[341309187,1730751043470,-377.30450389,0.00032876,2]
[341309188,1730751043479,-623.61936702,0.00032876,2]
[341309189,1730751043488,-353.46944525,0.00032876,2]
[341309190,1730751043496,-500.0,0.00032876,2]
[341309191,1730751043505,-500.0,0.00032876,2]
[341309192,1730751043514,-500.0,0.00032876,2]
[341309193,1730751043523,-500.0,0.00032876,2]
[341309194,1730751043531,-500.0,0.00032876,2]
[341309195,1730751043541,-500.0,0.00032876,2]
[341309196,1730751043550,-500.0,0.00032876,2]
[341309197,1730751043560,-500.0,0.00032876,2]
[341309198,1730751043570,-500.0,0.00032876,2]
[341309199,1730751043579,-513.39001016,0.00032876,2]
[341309200,1730751043588,-500.0,0.00032876,2]
[341309201,1730751043597,-500.0,0.00032876,2]
[341309202,1730751043606,-500.0,0.00032876,2]
[341309203,1730751043615,-500.0,0.00032876,2]
[341309204,1730751043624,-500.0,0.00032876,2]
[341309205,1730751043633,-500.0,0.00032876,2]
[341309206,1730751043642,-500.0,0.00032876,2]
[341309207,1730751043651,-507.77,0.00032876,2]
[341309208,1730751043660,-500.0,0.00032876,2]
[341309209,1730751043669,-500.0,0.00032876,2]
[341309210,1730751043679,-500.0,0.00032876,2]
[341309211,1730751043687,-500.0,0.00032876,2]
[341309212,1730751043697,-500.0,0.00032876,2]
[341309213,1730751043706,-500.0,0.00032876,2]
[341309214,1730751043715,-533.81546455,0.00032876,2]
[341309215,1730751043725,-500.0,0.00032876,2]
[341309216,1730751043735,-500.0,0.00032876,2]
[341309217,1730751043744,-500.0,0.00032876,2]
[341309218,1730751043753,-500.0,0.00032876,2]
[341309219,1730751043762,-500.0,0.00032876,2]
[341309220,1730751043772,-187.2068526,0.00032876,2]
[341309221,1730751043782,-500.0,0.00032876,2]
[341309222,1730751043794,-500.0,0.00032876,2]
[341309223,1730751043803,-500.0,0.00032876,2]
[341309224,1730751043813,-500.0,0.00032876,2]
[341309225,1730751043823,-500.0,0.00032876,2]
[341309226,1730751043835,-500.0,0.00032876,2]
[341309227,1730751043846,-500.0,0.00032876,2]
[341309228,1730751043856,-500.0,0.00032876,2]
[341309229,1730751043865,-500.0,0.00032876,2]
[341309230,1730751043875,-500.0,0.00032876,2]
[341309231,1730751043884,-500.0,0.00032876,2]
[341309232,1730751043894,-500.0,0.00032876,2]
[341309233,1730751043903,-500.0,0.00032876,2]
[341309234,1730751043912,-1232.788267,0.00032876,2]
[341309235,1730751043921,-171.08511075,0.00032876,2]
[341309236,1730751043932,-508.25,0.00032876,2]
[341309237,1730751043941,-500.0,0.00032876,2]
[341309238,1730751043951,-750.418152,0.00032876,2]
[341309239,1730751043960,-500.0,0.00032876,2]
[341309240,1730751043969,-500.0,0.00032876,2]
[341309241,1730751043979,-500.0,0.00032876,2]
[341309242,1730751043988,-500.0,0.00032876,2]
[341309243,1730751043997,-168.100051,0.00032876,2]
[341309244,1730751044007,-500.0,0.00032876,2]
[341309245,1730751044020,-500.0,0.00032876,2]
[341309246,1730751044030,-187.5172068,0.00032876,2]
[341309247,1730751044039,-509.76716139,0.00032876,2]
[341309248,1730751044048,-500.0,0.00032876,2]
[341309249,1730751044058,-153.236031,0.00032876,2]
[341309250,1730751044067,-500.0,0.00032876,2]
[341309251,1730751044076,-500.0,0.00032876,2]
[341309252,1730751044086,-500.0,0.00032876,2]
[341309253,1730751044096,-500.0,0.00032876,2]
[341309254,1730751044105,-500.0,0.00032876,2]
[341309255,1730751044114,-500.0,0.00032876,2]
[341309256,1730751044123,-500.0,0.00032876,2]
[341309257,1730751044133,-589.56,0.00032876,2]
[341309258,1730751044142,-500.0,0.00032876,2]
[341309259,1730751044151,-543.61636861,0.00032876,2]
[341309260,1730751044160,-150.26,0.00032876,2]
[341309261,1730751044169,-500.0,0.00032876,2]
[341309262,1730751044180,-505.09,0.00032876,2]
[341309263,1730751044189,-500.0,0.00032876,2]
[341309264,1730751044199,-500.0,0.00032876,2]
[341309265,1730751044208,-500.0,0.00032876,2]
[341309266,1730751044217,-500.0,0.00032876,2]
[341309267,1730751044226,-500.0,0.00032876,2]
[341309268,1730751044235,-192.32,0.00032876,2]
[341309269,1730751044245,-500.0,0.00032876,2]
[341309270,1730751044254,-500.0,0.00032876,2]
[341309271,1730751044263,-500.0,0.00032876,2]
[341309272,1730751044273,-500.0,0.00032876,2]
[341309273,1730751044282,-500.0,0.00032876,2]
[341309274,1730751044291,-500.0,0.00032876,2]
[341309275,1730751044301,-500.0,0.00032876,2]
[341309276,1730751044310,-331.6715509,0.00032876,2]
[341309277,1730751044319,-565.31802068,0.00032876,2]
[341309278,1730751044328,-514.97,0.00032876,2]
[341309279,1730751044337,-500.0,0.00032876,2]
[341309280,1730751044346,-544.70945445,0.00032876,2]
[341309281,1730751044356,-500.0,0.00032876,2]
[341309282,1730751044366,-500.0,0.00032876,2]
[341309283,1730751044377,-500.0,0.00032876,2]
[341309284,1730751044388,-500.0,0.00032876,2]
[341309285,1730751044398,-500.0,0.00032876,2]
[341309286,1730751044409,-500.0,0.00032876,2]
[341309287,1730751044419,-500.0,0.00032876,2]
[341309288,1730751044428,-500.0,0.00032876,2]
[341309289,1730751044440,-500.0,0.00032876,2]
[341309290,1730751044449,-500.0,0.00032876,2]
[341309291,1730751044458,-500.0,0.00032876,2]
[341309292,1730751044467,-500.0,0.00032876,2]
[341309293,1730751044476,-500.0,0.00032876,2]
[341309294,1730751044485,-500.0,0.00032876,2]
[341309295,1730751044494,-565.11,0.00032876,2]
[341309296,1730751044503,-500.0,0.00032876,2]
[341309297,1730751044512,-500.0,0.00032876,2]
[341309298,1730751044520,-500.0,0.00032876,2]
[341309299,1730751044529,-559.79970835,0.00032876,2]
[341309300,1730751044538,-500.0,0.00032876,2]
[341309301,1730751044547,-500.0,0.00032876,2]
[341309302,1730751044556,-500.0,0.00032876,2]
[341309303,1730751044565,-500.0,0.00032876,2]
[341309304,1730751044575,-500.0,0.00032876,2]
[341309305,1730751044585,-500.0,0.00032876,2]
[341309306,1730751044760,-235.19,0.00032876,2]
[341309307,1730751044770,-500.0,0.00032876,2]
[341309308,1730751044779,-500.0,0.00032876,2]
[341309309,1730751044789,-482.14765753,0.00032876,2]
[341309310,1730751044799,-500.0,0.00032876,2]
[341309311,1730751044809,-500.0,0.00032876,2]
[341309312,1730751044818,-500.0,0.00032876,2]
[341309313,1730751044830,-500.0,0.00032876,2]
[341309314,1730751044839,-500.0,0.00032876,2]
[341309315,1730751044848,-500.0,0.00032876,2]
[341309316,1730751044858,-500.0,0.00032876,2]
[341309317,1730751044867,-483.15633231,0.00032876,2]
[341309318,1730751044876,-500.0,0.00032876,2]
[341309319,1730751044886,-500.0,0.00032876,2]
[341309320,1730751044896,-500.0,0.00032876,2]
[341309321,1730751044906,-500.0,0.00032876,2]
[341309322,1730751044915,-500.0,0.00032876,2]
[341309323,1730751044925,-500.0,0.00032876,2]
[341309324,1730751044935,-500.0,0.00032876,2]
[341309325,1730751044945,-500.0,0.00032876,2]
[341309326,1730751044954,-500.0,0.00032876,2]
[341309327,1730751044964,-500.0,0.00032876,2]
[341309328,1730751044973,-500.0,0.00032876,2]
[341309329,1730751044983,-600.84,0.00032876,2]
[341309330,1730751044993,-500.0,0.00032876,2]
[341309331,1730751045002,-522.9,0.00032876,2]
[341309332,1730751045014,-500.0,0.00032876,2]
[341309333,1730751045024,-500.0,0.00032876,2]
[341309334,1730751045033,-500.0,0.00032876,2]
[341309335,1730751045041,-500.0,0.00032876,2]
[341309336,1730751045050,-500.0,0.00032876,2]
[341309337,1730751045060,-500.0,0.00032876,2]
[341309338,1730751045069,-500.0,0.00032876,2]
[341309339,1730751045078,-500.0,0.00032876,2]
[341309340,1730751045087,-500.0,0.00032876,2]
[341309341,1730751045096,-494.60277262,0.00032876,2]
[341309342,1730751045106,-500.0,0.00032876,2]
[341309343,1730751045115,-500.0,0.00032876,2]
[341309344,1730751045124,-500.0,0.00032876,2]
[341309345,1730751045134,-500.0,0.00032876,2]
[341309346,1730751045143,-500.0,0.00032876,2]
[341309347,1730751045153,-500.0,0.00032876,2]
[341309348,1730751045162,-500.0,0.00032876,2]
[341309349,1730751045171,-500.0,0.00032876,2]
[341309350,1730751045181,-500.0,0.00032876,2]
[341309351,1730751045190,-500.0,0.00032876,2]
[341309352,1730751045199,-500.0,0.00032876,2]
[341309353,1730751045209,-500.0,0.00032876,2]
[341309354,1730751045218,-500.0,0.00032876,2]
[341309355,1730751045227,-498.84972765,0.00032876,2]
[341309356,1730751045237,-500.0,0.00032876,2]
[341309357,1730751045246,-500.0,0.00032876,2]
[341309358,1730751045255,-500.0,0.00032876,2]
[341309359,1730751045264,-530.49,0.00032876,2]
[341309360,1730751045274,-500.0,0.00032876,2]
[341309361,1730751045284,-500.0,0.00032876,2]
[341309362,1730751045293,-500.0,0.00032876,2]
[341309363,1730751045301,-629.07357427,0.00032876,2]
[341309364,1730751045310,-500.0,0.00032876,2]
[341309365,1730751045319,-500.0,0.00032876,2]
[341309366,1730751045328,-500.0,0.00032876,2]
[341309367,1730751045337,-500.0,0.00032876,2]
[341309368,1730751045346,-500.0,0.00032876,2]
[341309369,1730751045355,-500.0,0.00032876,2]
[341309370,1730751045364,-500.0,0.00032876,2]
[341309371,1730751045373,-500.0,0.00032876,2]
[341309372,1730751045382,-500.0,0.00032876,2]
[341309373,1730751045391,-500.0,0.00032876,2]
[341309374,1730751045400,-500.0,0.00032876,2]
[341309375,1730751045410,-500.0,0.00032876,2]
[341309376,1730751045419,-500.0,0.00032876,2]
[341309377,1730751045429,-500.0,0.00032876,2]
[341309378,1730751045438,-500.0,0.00032876,2]
[341309379,1730751045448,-500.0,0.00032876,2]
[341309380,1730751045457,-500.0,0.00032876,2]
[341309381,1730751045466,-565.25708682,0.00032876,2]
[341309382,1730751045475,-500.0,0.00032876,2]
[341309383,1730751045484,-500.0,0.00032876,2]
[341309384,1730751045494,-500.0,0.00032876,2]
[341309385,1730751045503,-500.0,0.00032876,2]
[341309386,1730751045512,-500.0,0.00032876,2]
[341309387,1730751045521,-500.0,0.00032876,2]
[341309388,1730751045531,-500.0,0.00032876,2]
[341309390,1730751045540,-500.0,0.00032876,2]
[341309391,1730751045549,-500.0,0.00032876,2]
[341309392,1730751045558,-500.0,0.00032876,2]
[341309393,1730751045568,-500.0,0.00032876,2]
[341309394,1730751045577,-500.0,0.00032876,2]
[341309395,1730751045586,-500.0,0.00032876,2]
[341309396,1730751045596,-500.0,0.00032876,2]
[341309397,1730751045605,-500.0,0.00032876,2]
[341309399,1730751045613,-500.0,0.00032876,2]
[341309400,1730751045622,-500.0,0.00032876,2]
[341309402,1730751045631,-500.0,0.00032876,2]
[341309403,1730751045640,-500.0,0.00032876,2]
[341309404,1730751045648,-500.0,0.00032876,2]
[341309405,1730751045657,-500.0,0.00032876,2]
[341309407,1730751045666,-500.0,0.00032876,2]
[341309409,1730751045675,-500.0,0.00032876,2]
[341309411,1730751045685,-500.0,0.00032876,2]
[341309413,1730751045695,-500.0,0.00032876,2]
[341309416,1730751045705,-500.0,0.00032876,2]
[341309418,1730751045715,-500.0,0.00032876,2]
[341309420,1730751045725,-500.0,0.00032876,2]
[341309421,1730751045734,-500.0,0.00032876,2]
[341309423,1730751045743,-500.0,0.00032876,2]
[341309426,1730751045753,-500.0,0.00032876,2]
[341309427,1730751045762,-500.0,0.00032876,2]
[341309429,1730751045771,-500.0,0.00032876,2]
[341309431,1730751045781,-500.0,0.00032876,2]
[341309433,1730751045790,-500.0,0.00032876,2]
[341309435,1730751045800,-500.0,0.00032876,2]
[341309437,1730751045809,-500.0,0.00032876,2]
[341309439,1730751045818,-525.64,0.00032876,2]
[341309441,1730751045828,-500.0,0.00032876,2]
[341309443,1730751045837,-500.0,0.00032876,2]
[341309445,1730751045847,-607.94136317,0.00032876,2]
[341309447,1730751045856,-500.0,0.00032876,2]
[341309449,1730751045866,-500.0,0.00032876,2]
[341309451,1730751045876,-542.14,0.00032876,2]
[341309453,1730751045885,-500.0,0.00032876,2]
[341309455,1730751045894,-500.0,0.00032876,2]
[341309457,1730751045903,-184.46365481,0.00032876,2]
[341309458,1730751045912,-500.0,0.00032876,2]
[341309459,1730751045922,-500.0,0.00032876,2]
[341309460,1730751045932,-500.57300996,0.00032876,2]
[341309461,1730751045942,-500.0,0.00032876,2]
[341309462,1730751045951,-500.0,0.00032876,2]
[341309463,1730751045961,-500.0,0.00032876,2]
[341309464,1730751045971,-500.0,0.00032876,2]
[341309465,1730751045981,-500.0,0.00032876,2]
[341309466,1730751045991,-500.0,0.00032876,2]
[341309467,1730751046001,-500.0,0.00032876,2]
[341309468,1730751046012,-500.0,0.00032876,2]